bitfinex/quotes_ETHUSD_20250411
["timestamp","ask_amount","ask_price","bid_price","bid_amount"]
[1744333312691,1.6394,1505.8,1505.5,9.31]
[1744333312896,1.6394,1505.8,1505.6,0.931]
[1744333313395,6.64055,1505.9,1505.6,0.931]
[1744333313893,1.6394,1506.0,1505.7,3.0]
[1744333314127,8.27689,1506.6,1506.0,6.63992]
[1744333314258,8.27689,1506.6,1506.2,6.6392]
[1744333314456,6.63749,1506.6,1506.2,14.3374]
[1744333314690,6.6371,1506.7,1506.3,6.06]
[1744333314875,6.6371,1506.7,1506.3,12.69873]
[1744333315083,4.75099709,1506.8,1506.4,6.06]
[1744333315269,4.75099709,1506.8,1506.6,3.0]
[1744333315757,6.63725,1506.7,1506.5,9.698]
[1744333315957,11.38758709,1506.8,1506.5,9.698]
[1744333316673,4.75099709,1506.8,1506.5,9.698]
[1744333316880,4.75099709,1506.8,1506.5,16.33571]
[1744333317103,6.63727,1506.7,1506.5,9.698]
[1744333317411,11.38757709,1506.8,1506.5,9.698]
[1744333317795,6.63658,1506.8,1506.5,9.698]
[1744333319812,8.6214866,1507.0,1506.6,6.6374]
[1744333320111,15.2575866,1507.0,1506.6,6.6374]
[1744333320310,15.2575866,1507.0,1506.6,2.297313]
[1744333320311,6.63615,1506.9,1506.6,2.297313]
[1744333320491,6.63676,1506.8,1506.5,9.698]
[1744333320699,6.63615,1506.9,1506.1,0.663992]
[1744333320700,1.625,1506.6,1506.1,0.663992]
[1744333320871,1.625,1506.2,1505.6,9.09]
[1744333321071,6.64123,1505.8,1505.6,15.15]
[1744333321614,13.28126,1505.9,1505.6,15.15]
[1744333321794,6.64057,1505.9,1505.6,17.787468]
[1744333322374,6.64018,1506.0,1505.6,24.9149288]
[1744333322574,6.64018,1506.0,1505.6,31.5566388]
[1744333322974,6.64018,1506.0,1505.7,6.64141]
[1744333323174,6.64018,1506.0,1505.3,6.64314]
[1744333323175,6.64231,1505.5,1505.4,6.06]
[1744333323397,6.64206,1505.6,1505.4,6.06]
[1744333323572,13.2843,1505.6,1505.4,6.06]
[1744333324283,6.64206,1505.6,1505.4,6.06]
[1744333324803,1.625,1505.9,1505.4,7.32829607]
[1744333325005,6.64036,1506.0,1505.6,6.64159]
[1744333325174,6.64036,1506.0,1505.7,9.091]
[1744333325803,6.64086,1505.9,1505.7,9.091]
[1744333326103,1.625,1506.1,1505.7,9.091]
[1744333326104,6.64021,1506.0,1505.7,9.091]
[1744333326278,63.89980349,1506.9,1505.7,16.724271]
[1744333326279,6.6393,1506.2,1505.7,16.724271]
[1744333326485,6.63922,1506.2,1505.8,6.06]
[1744333326787,6.64054,1505.9,1505.8,6.06]
[1744333327684,8.26529,1506.0,1505.8,6.06]
[1744333327877,6.64054,1505.9,1505.8,6.06]
[1744333328272,6.63966,1506.1,1505.8,7.62445213]
[1744333328705,6.64019,1506.0,1505.8,7.62445213]
[1744333328905,1.625,1505.9,1505.4,6.06]
[1744333329211,8.26563,1505.9,1505.4,6.06]
[1744333329415,6.64118,1505.8,1505.4,12.7025]
[1744333329616,6.63999,1506.1,1505.6,3.0]
[1744333329617,6.63972,1506.1,1505.6,3.0]
[1744333329802,1.625,1506.4,1505.9,6.64039]
[1744333330010,1.625,1506.4,1506.0,12.69989]
[1744333330203,6.63753,1506.6,1506.1,15.7305]
[1744333330408,6.63753,1506.6,1506.2,8.22126]
[1744333330605,6.638,1506.5,1506.2,1.5824]
[1744333330813,1.625,1506.7,1506.2,9.63894]
[1744333330994,6.63763,1506.6,1506.3,0.963894]
[1744333331187,6.63763,1506.6,1506.3,7.52443499]
[1744333331702,6.63834,1506.4,1506.3,6.06]
[1744333331901,6.63804,1506.5,1506.3,6.06]
[1744333332219,6.63767,1506.6,1506.3,6.06]
[1744333332526,6.63767,1506.6,1506.3,13.20010665]
[1744333332823,6.63703,1506.7,1506.4,12.69825]
[1744333333120,6.63659,1506.8,1506.4,14.68208567]
[1744333333316,8.22199,1506.9,1506.5,9.091]
[1744333333489,13.27172,1507.0,1506.6,6.63735]
[1744333333689,6.63577,1507.0,1506.6,12.69735]
[1744333333889,6.63577,1507.0,1506.6,15.539958]
[1744333334783,6.63528,1507.1,1506.7,6.6368]
[1744333334990,8.22014,1507.4,1506.9,9.63576]
[1744333335216,8.22014,1507.4,1507.0,28.42003]
[1744333336317,8.22014,1507.4,1507.0,15.149]
[1744333336318,6.63468,1507.3,1507.0,15.149]
[1744333336523,6.63468,1507.3,1507.0,17.627493]
[1744333336718,6.63468,1507.3,1507.0,24.263173]
[1744333336924,8.21975,1507.4,1507.0,24.263173]
[1744333337122,6.63395,1507.4,1507.0,24.262953]
[1744333337328,6.63395,1507.4,1507.1,6.6352]
[1744333337529,6.63395,1507.4,1507.0,24.262953]
[1744333337717,6.63441,1507.3,1507.0,24.262953]
[1744333337917,6.63395,1507.4,1507.0,30.898443]
[1744333338124,13.26814,1507.4,1507.0,24.262953]
[1744333338426,6.63456,1507.3,1507.0,15.64531108]
[1744333338600,1.5858,1507.8,1507.2,6.63467]
[1744333338807,13.26746,1507.5,1507.2,6.06]
[1744333339009,6.63367,1507.5,1507.2,6.06]
[1744333339330,6.63367,1507.5,1507.2,13.60804391]
[1744333339538,6.63287,1507.7,1507.3,13.26844]
[1744333339692,14.85046,1507.8,1507.4,6.63376]
[1744333339894,13.26376,1507.9,1507.5,6.63334]
[1744333340097,13.26376,1507.9,1507.5,9.443664]
[1744333340508,1.5858,1508.1,1507.7,6.63236]
[1744333340509,8.21669,1508.1,1507.7,6.63236]
[1744333341038,12.96680709,1508.3,1507.9,6.63152]
[1744333341326,4.75099709,1508.3,1508.0,12.69113]
[1744333341506,4.75099709,1508.3,1508.1,6.06]
[1744333341711,4.75099709,1508.3,1508.2,14.834]
[1744333342046,4.75099709,1508.3,1508.2,16.3407]
[1744333342243,4.75099709,1508.3,1508.2,22.97112]
[1744333342610,11.37893709,1508.8,1508.4,6.62929]
[1744333342811,18.00702709,1508.8,1508.4,12.68929]
[1744333343138,18.00702709,1508.8,1508.4,6.06]
[1744333343139,6.62842,1508.7,1508.4,6.06]
[1744333343343,4.75099709,1508.8,1508.6,6.6285]
[1744333343543,4.75099709,1508.8,1508.7,8.774]
[1744333343743,4.75099709,1508.8,1508.7,18.40222]
[1744333345046,4.75099709,1508.8,1508.7,24.46222]
[1744333345255,4.75099709,1508.8,1508.7,27.721956]
[1744333346252,6.62609,1509.2,1508.8,9.62753]
[1744333346451,6.62689,1509.1,1508.8,6.06]
[1744333346656,6.62692,1509.0,1508.8,6.06]
[1744333346852,6.62689,1509.1,1508.8,6.06]
[1744333347055,13.25362,1509.1,1508.8,6.06]
[1744333347255,6.62605,1509.2,1508.9,6.06]
[1744333347633,6.62602,1509.2,1508.9,6.06]
[1744333348160,6.62647,1509.1,1508.9,6.06]
[1744333348451,6.6269,1509.0,1508.9,6.06]
[1744333349157,6.62822,1508.7,1508.6,6.06]
[1744333349363,6.62647,1509.1,1508.6,6.06]
[1744333349364,6.62709,1509.0,1508.6,7.23446]
[1744333349866,6.62696,1509.0,1508.6,7.12109112]
[1744333350064,6.62564,1509.3,1508.8,6.62745]
[1744333350245,13.25149,1509.3,1508.9,12.68732]
[1744333353048,6.62584,1509.3,1508.9,12.410192]
[1744333353272,6.62584,1509.3,1508.9,19.037312]
[1744333353470,6.62522,1509.4,1509.0,6.62669]
[1744333353678,6.62522,1509.4,1509.1,15.39246]
[1744333353853,13.25065,1509.4,1509.1,8.766]
[1744333354241,6.6257,1509.3,1509.1,8.766]
[1744333354672,6.6257,1509.3,1509.0,7.8676512]
[1744333354878,6.6257,1509.3,1509.0,8.36501527]
[1744333355979,6.62522,1509.4,1509.0,14.99176527]
[1744333356779,6.62573,1509.3,1509.0,1.73832527]
[1744333356955,6.62573,1509.3,1509.0,8.36521527]
[1744333357357,6.62573,1509.3,1509.1,6.06]
[1744333357876,6.62529,1509.4,1509.1,6.06]
[1744333358380,6.62573,1509.3,1509.1,6.06]
[1744333358545,8.15491,1509.5,1509.1,14.12856553]
[1744333358745,6.62471,1509.5,1509.1,14.12856553]
[1744333358945,6.62434,1509.6,1509.2,15.38992]
[1744333359181,6.62479,1509.5,1509.3,6.06]
[1744333360084,13.24981,1509.5,1509.3,6.06]
[1744333360884,6.62514,1509.4,1509.3,6.06]
[1744333362774,6.6269,1509.0,1508.9,6.06]
[1744333362990,13.2551,1508.9,1508.7,14.823]
[1744333363786,6.62693,1509.0,1508.7,6.06]
[1744333363959,6.62653,1509.1,1508.7,13.956767]
[1744333364159,6.62606,1509.2,1508.9,1.5869]
[1744333364367,13.25051,1509.4,1508.9,8.21398]
[1744333364562,13.25051,1509.4,1509.0,12.68669]
[1744333364780,13.25051,1509.4,1509.0,14.114049]
[1744333365089,6.62559,1509.3,1509.0,7.98161666]
[1744333366194,6.62559,1509.3,1509.0,14.60841666]
[1744333367496,6.6252,1509.4,1509.0,21.23512666]
[1744333367988,6.62569,1509.3,1509.0,14.60832666]
[1744333368295,6.6252,1509.4,1509.1,3.0]
[1744333369093,6.6252,1509.4,1509.1,9.06]
[1744333369692,6.62477,1509.5,1509.1,24.73623167]
[1744333369893,13.24824,1509.7,1509.4,6.625]
[1744333370191,6.62428,1509.6,1509.4,9.06]
[1744333370584,6.62406,1509.7,1509.4,9.06]
[1744333371173,6.62406,1509.7,1509.4,11.291079]
[1744333371983,6.62346,1509.8,1509.4,17.916119]
[1744333372175,6.62346,1509.8,1509.5,8.25967]
[1744333372375,6.62346,1509.8,1509.6,8.442]
[1744333372799,6.623,1509.9,1509.6,8.442]
[1744333372970,6.623,1509.9,1509.6,10.774619]
[1744333373375,6.623,1509.9,1509.6,17.398859]
[1744333373696,6.6236,1509.8,1509.6,10.774619]
[1744333373899,7.0090213,1510.0,1509.6,9.62383]
[1744333374076,7.0090213,1510.0,1509.7,6.06]
[1744333374281,7.0090213,1510.0,1509.8,6.06]
[1744333374673,13.6317513,1510.0,1509.8,6.06]
[1744333374870,0.3863513,1510.0,1509.8,6.06]
[1744333375275,0.3863513,1510.0,1509.8,15.769361]
[1744333375806,0.3863513,1510.0,1509.8,16.25705041]
[1744333377005,0.3863513,1510.0,1509.8,22.88040041]
[1744333377206,0.3863513,1510.0,1509.9,17.83395]
[1744333377513,0.3863513,1510.0,1509.9,17.28395]
[1744333377724,0.3863513,1510.0,1509.9,20.69438504]
[1744333378280,0.3863513,1510.0,1509.9,14.07143504]
[1744333379076,0.3863513,1510.0,1509.9,10.661]
[1744333379350,0.3863513,1510.0,1509.9,15.68295]
[1744333379539,0.3863513,1510.0,1509.9,9.06]
[1744333380854,7.0088613,1510.0,1509.9,6.06]
[1744333381011,0.3863513,1510.0,1509.9,6.06]
[1744333381208,7.0088613,1510.0,1509.9,6.06]
[1744333381654,7.0088613,1510.0,1509.6,1.601]
[1744333381655,6.62357,1509.8,1509.6,6.5680967]
[1744333381873,6.62383,1509.7,1509.6,6.06]
[1744333382022,6.62357,1509.8,1509.6,6.06]
[1744333382353,6.62383,1509.7,1509.6,6.06]
[1744333382648,6.62301,1509.9,1509.6,13.77966252]
[1744333382833,6.62301,1509.9,1509.6,14.499]
[1744333383214,6.62339,1509.8,1509.6,14.499]
[1744333383411,6.62301,1509.9,1509.6,14.499]
[1744333383850,2.0449513,1510.0,1509.6,22.72405]
[1744333384154,0.3863513,1510.0,1509.7,9.62367]
[1744333384318,0.3863513,1510.0,1509.7,12.858458]
[1744333385244,0.3863513,1510.0,1509.7,19.482128]
[1744333385460,0.3863513,1510.0,1509.9,9.62295]
[1744333386663,0.3863513,1510.0,1509.9,3.0]
[1744333386897,0.3863513,1510.0,1509.8,6.06]
[1744333387255,0.3863513,1510.0,1509.9,9.62295]
[1744333387783,0.3863513,1510.0,1509.9,11.22395]
[1744333388689,0.3863513,1510.0,1509.9,3.0]
[1744333389054,0.3863513,1510.0,1509.9,9.62295]
[1744333389546,0.3863513,1510.0,1509.9,22.6136389]
[1744333389745,0.3863513,1510.0,1509.9,25.59791379]
[1744333390150,0.55,1510.4,1510.3,16.0018889]
[1744333390363,0.55,1510.4,1510.3,30.43952974]
[1744333390546,0.55,1510.4,1510.3,30.98952974]
[1744333391184,11.36840709,1511.2,1510.7,1.6045]
[1744333391397,11.36840709,1511.2,1510.8,20.7303887]
[1744333391696,4.75099709,1511.2,1510.9,3.0]
[1744333391853,6.618,1511.1,1510.9,3.0]
[1744333392187,11.36829709,1511.2,1510.9,3.0]
[1744333392389,6.61832,1511.0,1510.8,14.1116487]
[1744333392689,8.15517,1510.9,1510.8,5.6736487]
[1744333392848,8.15517,1510.9,1510.8,4.95704153]
[1744333393048,6.61935,1510.8,1510.5,8.436]
[1744333393465,6.61988,1510.6,1510.5,8.436]
[1744333393863,6.62032,1510.5,1510.4,4.95704153]
[1744333394090,6.61988,1510.6,1510.4,4.95704153]
[1744333394587,6.6195,1510.7,1510.4,4.95704153]
[1744333394912,13.23832,1510.8,1510.4,12.78557242]
[1744333395202,6.61962,1510.7,1510.4,6.16497242]
[1744333395578,6.62032,1510.5,1510.4,4.95704153]
[1744333395909,6.62032,1510.5,1510.2,3.0]
[1744333395910,8.15692,1510.5,1510.2,7.95704153]
[1744333396117,13.24281,1510.3,1510.1,8.436]
[1744333396267,6.62139,1510.3,1510.1,8.93574526]
[1744333396593,1.5366,1510.5,1509.8,7.16754153]
[1744333396780,6.62266,1510.0,1509.8,4.95704153]
[1744333396977,13.24547,1510.0,1509.8,4.95704153]
[1744333397165,1.5366,1510.2,1509.7,4.95704153]
[1744333397166,6.62335,1509.9,1509.7,4.95704153]
[1744333397814,6.62339,1509.8,1509.7,4.95704153]
[1744333397992,6.62335,1509.9,1509.7,4.95704153]
[1744333398215,6.62213,1510.1,1509.7,12.1253692]
[1744333398524,8.15825,1510.2,1509.8,8.22787]
[1744333398723,8.15695,1510.5,1510.0,9.62234]
[1744333398926,8.15695,1510.5,1510.1,11.57887153]
[1744333399225,1.5366,1510.5,1510.2,7.77938715]
[1744333399436,1.5366,1510.5,1510.2,8.28399539]
[1744333399634,6.61968,1510.7,1510.3,19.71319153]
[1744333399923,13.23939,1510.7,1510.3,19.71319153]
[1744333400112,6.62062,1510.5,1510.3,13.09204153]
[1744333400278,6.62076,1510.4,1510.3,16.09204153]
[1744333400484,6.62062,1510.5,1510.3,16.09204153]
[1744333400733,6.62062,1510.5,1510.3,13.09204153]
[1744333400916,8.15736,1510.4,1510.3,13.09204153]
[1744333401321,8.15736,1510.4,1510.3,4.95704153]
[1744333402255,1.5366,1510.0,1509.6,8.135]
[1744333402559,6.62442,1509.6,1509.4,8.135]
[1744333402706,6.62383,1509.7,1509.4,14.7601]
[1744333402908,14.78212,1510.0,1509.5,3.0]
[1744333403233,6.62311,1509.9,1509.6,4.95704153]
[1744333403435,6.62381,1509.8,1509.6,4.95704153]
[1744333404145,6.62296,1509.9,1509.6,5.75274568]
[1744333404321,6.62296,1509.9,1509.6,12.37697568]
[1744333404641,6.62253,1510.0,1509.7,3.0]
[1744333404820,6.62221,1510.1,1509.8,6.62337]
[1744333405017,1.5366,1510.2,1509.7,3.0]
[1744333405238,6.62321,1509.9,1509.7,3.87527457]
[1744333405430,6.62257,1510.0,1509.7,3.87527457]
[1744333406013,6.62215,1510.1,1509.7,17.12268457]
[1744333406410,8.15827,1510.2,1509.8,6.62328]
[1744333406713,14.78024,1510.2,1509.8,14.75928]
[1744333406917,8.15827,1510.2,1509.8,22.24208599]
[1744333407320,8.15827,1510.2,1509.8,28.86524599]
[1744333407918,14.78015,1510.2,1509.8,22.24201599]
[1744333408115,6.62295,1509.9,1509.8,8.136]
[1744333408720,6.62222,1510.1,1509.8,8.136]
[1744333408914,6.62188,1510.2,1509.9,1.6298]
[1744333409134,6.62188,1510.2,1509.8,19.71604153]
[1744333409135,6.62188,1510.2,1509.8,13.09304153]
[1744333409334,6.62225,1510.1,1509.8,4.95704153]
[1744333409513,6.62257,1510.0,1509.8,6.94043468]
[1744333409849,6.62122,1510.3,1509.6,4.95704153]
[1744333409850,6.62207,1510.1,1509.6,4.95704153]
[1744333410048,6.62347,1509.8,1509.6,4.95704153]
[1744333410619,6.62383,1509.7,1509.6,4.95704153]
[1744333410846,6.62471,1509.5,1509.1,8.136]
[1744333411034,6.62602,1509.2,1509.1,8.136]
[1744333411229,6.62602,1509.2,1509.0,4.95704153]
[1744333411230,6.62646,1509.1,1509.0,4.95704153]
[1744333411630,6.62519,1509.4,1509.0,5.45274568]
[1744333411631,6.62518,1509.4,1509.0,5.45274568]
[1744333411854,6.62384,1509.7,1509.0,5.45274568]
[1744333411855,6.62398,1509.7,1509.3,6.62545]
[1744333412145,6.623,1509.9,1509.5,8.25431]
[1744333412330,1.503,1510.1,1509.5,4.6298]
[1744333412528,6.62376,1509.8,1509.5,3.0]
[1744333412732,1.503,1509.7,1509.2,8.136]
[1744333412928,6.62477,1509.5,1509.3,3.0]
[1744333413157,6.62427,1509.6,1509.3,9.62558]
[1744333413718,6.62485,1509.5,1509.3,3.0]
[1744333414458,6.62514,1509.4,1509.2,8.136]
[1744333414618,6.62558,1509.3,1509.2,8.136]
[1744333414824,8.12705,1509.7,1509.3,3.0]
[1744333415054,6.62405,1509.7,1509.3,16.21226153]
[1744333415564,6.62405,1509.7,1509.3,22.83770153]
[1744333415746,6.62339,1509.8,1509.5,3.0]
[1744333415953,8.126,1509.9,1509.5,9.62452]
[1744333416267,6.62342,1509.8,1509.6,8.136]
[1744333416419,6.62383,1509.7,1509.6,8.136]
[1744333416625,8.12608,1509.9,1509.6,14.76022]
[1744333416863,6.62373,1509.8,1509.6,13.09304153]
[1744333417225,6.62383,1509.7,1509.6,16.09304153]
[1744333417433,6.62383,1509.7,1509.6,11.136]
[1744333417964,6.62456,1509.6,1509.3,6.58684153]
[1744333418267,6.62533,1509.4,1509.2,8.137]
[1744333418477,8.12685,1509.7,1509.3,3.0]
[1744333418635,14.75099,1509.7,1509.3,9.62541]
[1744333418976,6.62514,1509.4,1509.3,3.0]
[1744333419274,14.75108,1509.7,1509.3,16.25078]
[1744333419480,8.12688,1509.7,1509.3,16.25081]
[1744333419631,14.75108,1509.7,1509.3,16.25081]
[1744333419831,6.62427,1509.6,1508.8,11.58466153]
[1744333420033,13.25259,1509.2,1508.8,11.58466153]
[1744333420240,6.62628,1509.2,1508.9,3.0]
[1744333420474,6.62628,1509.2,1508.9,10.13469491]
[1744333420628,13.25131,1509.3,1508.9,10.13469491]
[1744333420828,6.62516,1509.4,1509.0,6.6269]
[1744333421029,6.62516,1509.4,1509.1,17.05593]
[1744333421275,8.12711,1509.7,1509.3,3.0]
[1744333421473,6.62427,1509.6,1509.3,7.95704153]
[1744333423165,6.62473,1509.5,1509.3,7.95704153]
[1744333423403,13.24894,1509.6,1509.3,7.95704153]
[1744333423613,6.62385,1509.7,1509.3,16.04077268]
[1744333423904,6.62442,1509.6,1509.3,14.58259153]
[1744333424105,13.24904,1509.6,1509.3,7.95704153]
[1744333424398,6.625,1509.5,1509.3,7.95704153]
[1744333424700,6.62514,1509.4,1509.3,4.95704153]
[1744333424899,6.62602,1509.2,1509.1,8.137]
[1744333425202,6.62577,1509.3,1509.1,8.137]
[1744333425388,6.62528,1509.4,1509.1,9.44640415]
[1744333425570,13.25064,1509.4,1509.1,9.44640415]
[1744333425775,6.62528,1509.4,1509.1,9.44640415]
[1744333426177,1.6491,1509.5,1509.1,9.44640415]
[1744333426178,6.62579,1509.3,1509.1,9.44640415]
[1744333426795,6.62479,1509.5,1509.2,10.57042042]
[1744333427361,6.62538,1509.4,1509.2,3.94464042]
[1744333427566,6.62558,1509.3,1509.2,3.0]
[1744333428002,6.62538,1509.4,1509.2,3.0]
[1744333428203,6.6252,1509.4,1509.2,3.0]
[1744333429075,6.62477,1509.5,1509.2,3.0]
[1744333429706,6.62541,1509.4,1509.2,3.0]
[1744333429894,13.25077,1509.4,1509.2,3.0]
[1744333430202,6.62536,1509.4,1509.2,3.0]
[1744333430406,6.62536,1509.4,1509.2,4.24464041]
[1744333430603,6.62536,1509.4,1509.2,9.20168194]
[1744333430908,13.25085,1509.4,1509.2,7.95704153]
[1744333431605,6.62536,1509.4,1509.2,7.95704153]
[1744333432114,6.62535,1509.4,1509.2,7.95704153]
[1744333432413,13.24991,1509.5,1509.2,7.95704153]
[1744333432582,6.62443,1509.6,1509.2,16.24153153]
[1744333432782,6.62443,1509.6,1509.2,18.8103251]
[1744333433274,6.62488,1509.5,1509.2,12.1844351]
[1744333434103,6.62429,1509.6,1509.2,18.8104551]
[1744333434410,8.27194,1510.0,1509.5,6.62436]
[1744333434569,13.02138709,1510.3,1509.7,3.0]
[1744333434770,6.6217,1510.2,1509.9,3.0]
[1744333435000,6.6217,1510.2,1509.9,7.95704153]
[1744333435204,13.02137709,1510.3,1509.9,16.03796768]
[1744333435407,6.62077,1510.4,1510.1,3.0]
[1744333435605,6.40009709,1510.5,1510.1,3.0]
[1744333435791,6.62151,1510.3,1510.1,3.0]
[1744333436100,6.62207,1510.1,1510.0,8.045]
[1744333436606,6.6212,1510.3,1510.0,8.045]
[1744333437107,13.24188,1510.4,1510.0,14.66726]
[1744333437297,6.62123,1510.3,1510.0,14.66726]
[1744333437505,6.62123,1510.3,1510.0,14.66736]
[1744333437809,6.62078,1510.4,1510.0,25.51087715]
[1744333438010,13.02047709,1510.5,1510.1,6.62185]
[1744333438218,11.37137709,1510.5,1510.2,3.0]
[1744333438375,4.75099709,1510.5,1510.2,3.0]
[1744333438717,6.6212,1510.3,1510.2,3.0]
[1744333438897,6.6212,1510.3,1510.0,14.59854153]
[1744333439406,6.6218,1510.2,1510.0,14.59854153]
[1744333439771,6.6218,1510.2,1510.0,13.00204153]
[1744333440192,8.23066,1510.3,1510.0,13.00204153]
[1744333440712,6.62164,1510.2,1510.0,13.00204153]
[1744333440923,8.23066,1510.3,1510.0,13.00204153]
[1744333441074,8.23066,1510.3,1509.8,4.95704153]
[1744333441075,6.62271,1510.0,1509.8,4.95704153]
[1744333441413,8.23076,1510.3,1509.9,6.62271]
[1744333441572,6.62038,1510.5,1510.1,1.5965]
[1744333441768,6.62038,1510.5,1510.2,6.62159]
[1744333442034,13.24095,1510.5,1510.2,4.483998]
[1744333442195,13.24095,1510.5,1510.2,3.0]
[1744333442396,6.62076,1510.4,1510.2,3.0]
[1744333442578,6.62038,1510.5,1510.2,3.48883041]
[1744333443308,13.24092,1510.5,1510.2,3.48883041]
[1744333443513,6.62038,1510.5,1510.2,3.48883041]
[1744333443869,13.24098,1510.5,1510.2,3.48883041]
[1744333444414,6.62038,1510.5,1510.2,3.48883041]
[1744333445073,6.62038,1510.5,1510.2,10.11042041]
[1744333445274,8.2293,1510.6,1510.2,23.52178098]
[1744333445719,6.61903,1510.8,1510.4,11.21686]
[1744333445922,6.61862,1510.9,1510.5,14.66325]
[1744333446111,6.61862,1510.9,1510.5,14.66311]
[1744333446309,12.97859709,1511.0,1510.7,3.0]
[1744333446498,11.36919709,1511.0,1510.7,3.0]
[1744333446694,4.75099709,1511.0,1510.7,7.95704153]
[1744333446898,4.75099709,1511.0,1510.8,8.21532]
[1744333447103,4.75099709,1511.0,1510.9,8.042]
[1744333447720,6.61988,1510.6,1510.5,11.042]
[1744333448020,6.62046,1510.5,1510.3,4.95704153]
[1744333448787,14.84857,1510.7,1510.3,6.48880531]
[1744333449027,14.84857,1510.7,1510.3,13.10984531]
[1744333449189,8.22888,1510.7,1510.3,13.10977531]
[1744333449385,8.22888,1510.7,1510.3,13.10990531]
[1744333449721,14.84862,1510.7,1510.3,6.48880531]
[1744333450017,1.6094,1510.7,1510.3,6.48880531]
[1744333450188,6.6205,1510.5,1510.3,6.48880531]
[1744333451217,13.24107,1510.5,1510.3,4.95704153]
[1744333451626,6.6205,1510.5,1510.3,4.95704153]
[1744333451836,6.62076,1510.4,1510.3,4.95704153]
[1744333452128,6.619,1510.8,1510.5,3.0]
[1744333452326,6.61988,1510.6,1510.5,3.0]
[1744333452826,6.62032,1510.5,1510.3,4.95704153]
[1744333452993,6.62076,1510.4,1510.3,4.95704153]
[1744333453399,13.24084,1510.5,1510.3,4.95704153]
[1744333453605,6.62076,1510.4,1510.3,4.95704153]
[1744333454141,6.6212,1510.3,1510.2,8.042]
[1744333454293,6.62076,1510.4,1510.2,8.042]
[1744333454294,13.24175,1510.4,1510.2,11.042]
[1744333454494,6.6212,1510.3,1510.2,11.042]
[1744333455640,8.20497,1510.1,1510.0,0.49995036]
[1744333455801,8.20497,1510.1,1509.4,12.80604153]
[1744333455802,6.6241,1509.7,1509.4,12.80604153]
[1744333456216,6.62407,1509.7,1509.5,3.0]
[1744333456830,6.62407,1509.7,1509.4,13.31308867]
[1744333456831,6.62435,1509.6,1509.4,13.31308867]
[1744333457049,13.24798,1509.7,1509.4,15.47315254]
[1744333457255,13.24798,1509.7,1509.4,22.09829254]
[1744333457256,6.62386,1509.7,1509.4,22.09829254]
[1744333457397,6.62346,1509.8,1509.5,3.0]
[1744333457740,6.62302,1509.9,1509.5,9.62448]
[1744333457903,6.62302,1509.9,1509.7,3.0]
[1744333458231,8.20503,1510.1,1509.8,7.849]
[1744333458417,8.20503,1510.1,1509.8,12.80604153]
[1744333458756,14.82737,1510.1,1509.8,12.80604153]
[1744333459097,8.20503,1510.1,1509.8,12.80604153]
[1744333459494,2.73302157,1510.1,1509.8,4.95704153]
[1744333459840,2.73302157,1510.1,1509.4,14.97608867]
[1744333459841,6.624,1509.7,1509.4,14.97608867]
[1744333460052,6.624,1509.7,1509.5,3.0]
[1744333460697,6.6234,1509.8,1509.5,3.0]
[1744333461119,6.62301,1509.9,1509.5,19.37180287]
[1744333461422,13.24626,1509.9,1509.5,12.74713287]
[1744333462020,8.20513,1510.1,1509.7,6.62367]
[1744333462260,14.82752,1510.1,1509.7,6.62367]
[1744333462461,14.82752,1510.1,1509.8,7.851]
[1744333463355,8.20513,1510.1,1509.8,14.47438]
[1744333463658,6.62142,1510.3,1509.9,9.62277]
[1744333463861,13.24177,1510.4,1510.1,3.0]
[1744333464362,6.62139,1510.3,1510.1,3.0]
[1744333464660,6.62163,1510.2,1510.1,3.0]
[1744333464841,6.62139,1510.3,1510.1,3.0]
[1744333465046,13.24281,1510.3,1510.1,3.0]
[1744333465420,6.62139,1510.3,1510.1,3.0]
[1744333466254,13.24298,1510.3,1510.1,3.0]
[1744333466454,6.62207,1510.1,1510.0,4.95704153]
[1744333466658,6.62315,1509.9,1509.7,4.95704153]
[1744333466845,6.62315,1509.9,1509.7,3.0]
[1744333467357,6.62315,1509.9,1509.6,14.47525]
[1744333467558,6.62315,1509.9,1509.6,14.47522]
[1744333467732,1.5688,1510.2,1509.6,15.08071853]
[1744333467933,8.19051,1510.2,1509.8,13.24655]
[1744333468259,6.62078,1510.4,1509.9,6.62277]
[1744333468260,13.24286,1510.3,1509.9,6.62277]
[1744333468436,6.62232,1510.1,1509.8,4.6271]
[1744333468758,13.24469,1510.1,1509.8,4.6271]
[1744333468966,6.62232,1510.1,1509.8,4.6271]
[1744333469354,6.62211,1510.1,1509.9,3.0]
[1744333469580,6.62165,1510.2,1509.9,3.0]
[1744333469857,13.24367,1510.2,1509.9,4.125029]
[1744333470040,6.62165,1510.2,1509.9,4.125029]
[1744333470658,6.6212,1510.3,1509.6,17.17814391]
[1744333470822,6.62275,1510.0,1509.7,9.62363]
[1744333471023,6.623,1509.9,1509.7,3.0]
[1744333471224,6.62207,1510.1,1509.7,3.0]
[1744333471743,6.62268,1510.0,1509.7,9.6237]
[1744333471949,6.62268,1510.0,1509.7,3.0]
[1744333472461,6.62155,1510.3,1509.9,9.62257]
[1744333472760,6.62148,1510.3,1510.0,7.851]
[1744333472962,6.6218,1510.2,1510.0,7.851]
[1744333474678,6.62207,1510.1,1510.0,7.851]
[1744333474846,6.62207,1510.1,1509.8,4.95704153]
[1744333474847,13.24455,1510.1,1509.8,4.95704153]
[1744333475237,8.26029,1510.2,1509.8,11.58031153]